bitfinex-derivatives/quotes_SOLF0:USTF0_20260210
["timestamp","ask_amount","ask_price","bid_price","bid_amount"]
[1770693999490,35.0,85.929,85.831,81.07386927]
[1770693999699,10.4826,85.91,85.843,81.07386927]
[1770694000695,10.4826,85.91,85.849,10.4899]
[1770694000898,10.4826,85.91,85.85,81.07386927]
[1770694001398,10.4826,85.91,85.83,8.36552978]
[1770694001399,10.4826,85.91,85.852,81.07386927]
[1770694001988,35.0,85.929,85.797,35.0]
[1770694002198,163.1013,85.89,85.797,10.1314]
[1770694002496,163.2572,85.808,85.698,57.77386927]
[1770694002797,8.36552978,85.77,85.698,57.77386927]
[1770694003194,163.2876,85.792,85.698,57.77386927]
[1770694003391,8.36552978,85.76,85.698,57.77386927]
[1770694005102,8.36552978,85.77,85.698,57.77386927]
[1770694005599,8.36552978,85.79,85.713,66.51663047]
[1770694005902,8.36552978,85.82,85.731,66.50811501]
[1770694006101,8.36552978,85.82,85.741,66.50811501]
[1770694006895,8.36552978,85.82,85.744,66.98364452]
[1770694007209,163.0921,85.895,85.761,66.98364452]
[1770694007401,8.54533436,85.888,85.761,66.98364452]
[1770694007595,10.4874,85.871,85.761,66.98364452]
[1770694007795,10.4874,85.871,85.781,66.97759065]
[1770694007998,8.36552978,85.88,85.781,66.97759065]
[1770694008295,163.0026,85.942,85.781,66.97759065]
[1770694008296,10.4849,85.891,85.791,5.82]
[1770694008498,8.36552978,85.88,85.792,66.97759065]
[1770694008693,10.4849,85.891,85.765,10.5002]
[1770694008694,10.4849,85.891,85.801,67.47444769]
[1770694008896,8.36552978,85.9,85.801,67.47444769]
[1770694009106,10.4825,85.911,85.821,67.47444769]
[1770694009801,10.4825,85.911,85.82,8.36552978]
[1770694009802,10.4825,85.911,85.825,67.46776296]
[1770694011605,10.4844,85.895,85.825,67.46776296]
[1770694013899,10.4844,85.895,85.825,73.28776296]
[1770694014313,10.4826,85.91,85.825,73.28776296]
[1770694014611,8.37344269,85.92,85.836,69.46295343]
[1770694015004,8.37344269,85.92,85.839,69.72320192]
[1770694016000,8.37344269,85.96,85.861,69.72904107]
[1770694016205,10.4794,85.936,85.861,69.72904107]
[1770694016607,8.37344269,85.96,85.874,69.72904107]
[1770694017809,10.4777,85.95,85.874,69.72904107]
[1770694018606,10.4777,85.95,85.88,69.83178171]
[1770694019003,10.4777,85.95,85.887,70.03003191]
[1770694019601,162.8523,86.021,85.9,70.03003191]
[1770694019602,8.37344269,85.99,85.9,70.03003191]
[1770694020005,8.37344269,85.99,85.906,5.82]
[1770694020211,8.37344269,85.99,85.907,70.03668471]
[1770694020413,10.4724,85.994,85.911,70.03668471]
[1770694020916,8.37344269,85.99,85.911,70.03668471]
[1770694021114,8.37344269,86.01,85.913,70.17057839]
[1770694021312,8.37344269,86.01,85.922,70.17057839]
[1770694021715,8.37344269,86.01,85.928,70.17756344]
[1770694021911,10.4709,86.006,85.928,70.17756344]
[1770694022309,10.4709,86.006,85.938,70.17756344]
[1770694025412,10.4709,86.006,85.938,75.99756344]
[1770694026114,10.4723,85.995,85.938,75.99756344]
[1770694026321,8.37344269,86.01,85.938,70.17756344]
[1770694026620,10.4738,85.982,85.938,70.17756344]
[1770694027014,10.4738,85.982,85.947,5.82]
[1770694028324,8.37344269,86.02,85.959,70.21882274]
[1770694028924,10.4722,85.995,85.959,70.21882274]
[1770694030318,10.4722,85.995,85.959,28.05202274]
[1770694030517,10.4722,85.995,85.959,2.274e-05]
[1770694031428,10.4735,85.984,85.92,8.37344269]
[1770694031623,10.4735,85.984,85.907,10.4828]
[1770694031823,8.37344269,86.0,85.743,163.3781]
[1770694031824,10.4843,85.896,85.743,163.3781]
[1770694032019,8.37344269,85.9,85.78,8.37344269]
[1770694032226,8.37344269,85.9,85.8,8.37344269]
[1770694032524,8.37344269,85.92,85.821,45.17252166]
[1770694033231,10.4814,85.919,85.821,45.17252166]
[1770694033425,10.4814,85.919,85.831,45.99116545]
[1770694035937,8.37344269,85.88,85.812,48.6930364]
[1770694036124,163.0553,85.914,85.73,232.76]
[1770694036125,8.37344269,85.86,85.771,48.6930364]
[1770694036331,10.4892,85.856,85.771,48.6930364]
[1770694036538,8.37344269,85.87,85.771,48.6930364]
[1770694036831,10.4878,85.867,85.771,48.6930364]
[1770694038931,10.4878,85.867,85.529,36.06070413]
[1770694038932,8.37344269,85.83,85.746,48.3459212]
[1770694039434,10.4924,85.829,85.746,48.3459212]
[1770694039932,163.2355,85.819,85.682,48.40926283]
[1770694040137,163.2355,85.819,85.625,234.87005413]
[1770694040138,8.37344269,85.78,85.671,48.40926283]
[1770694040428,163.195,85.841,85.72,8.37344269]
[1770694040628,8.37344269,85.83,85.721,48.40926283]
[1770694041027,10.4959,85.801,85.731,48.49900711]
[1770694042334,10.4937,85.819,85.731,48.49900711]
[1770694043033,10.4915,85.837,85.751,52.70776649]
[1770694044336,10.4938,85.818,85.751,52.70776649]
[1770694045439,10.4916,85.836,85.751,52.70776649]
[1770694046943,8.37344269,85.85,85.751,52.70776649]
[1770694047135,10.4894,85.854,85.761,52.28686533]
[1770694048740,10.4911,85.84,85.761,52.28686533]
[1770694048942,8.37344269,85.88,85.781,52.32217586]
[1770694049941,10.4894,85.855,85.781,52.32217586]
[1770694050936,8.14889917,85.88,85.756,52.45716894]
[1770694051136,163.034,85.925,85.632,163.5905]
[1770694051137,10.4928,85.827,85.731,52.45716894]
[1770694051338,10.4928,85.827,85.736,52.45716894]
[1770694051739,10.491,85.841,85.751,52.49679008]
[1770694052042,10.491,85.841,85.771,52.49679008]
[1770694054940,10.4925,85.829,85.771,52.49679008]
[1770694055138,35.0,85.849,85.771,52.49679008]
[1770694055437,35.0,85.849,85.721,52.57628269]
[1770694055643,10.4942,85.815,85.727,52.57628269]
[1770694055837,10.4942,85.815,85.74,9.55475705]
[1770694056040,10.4942,85.815,85.741,52.61411488]
[1770694056345,10.4926,85.828,85.743,52.61411488]
[1770694056544,35.0,85.849,85.743,52.61411488]
[1770694057744,10.4942,85.815,85.743,52.61411488]
[1770694058745,10.4923,85.83,85.743,52.61411488]
[1770694062450,10.4938,85.818,85.743,52.61411488]
[1770694062749,35.0,85.839,85.743,52.61411488]
[1770694063145,9.00037049,85.856,85.743,52.61411488]
[1770694063146,10.4951,85.807,85.743,52.61411488]
[1770694065445,45.4937,85.819,85.743,52.61411488]
[1770694067954,10.4949,85.809,85.743,52.61411488]
[1770694070948,9.55964993,85.83,85.743,52.61411488]
[1770694071153,35.0,85.821,85.743,52.61411488]
[1770694071651,35.0,85.809,85.7,9.55964993]
[1770694071857,35.0,85.809,85.701,53.57956721]
[1770694072351,10.4951,85.807,85.718,53.57956721]
[1770694073058,10.4963,85.798,85.718,53.57956721]
[1770694074558,10.495,85.808,85.721,53.46904525]
[1770694075956,10.495,85.808,85.74,53.52143252]
[1770694076258,35.0,85.833,85.744,53.52143252]
[1770694076259,35.0,85.831,85.744,53.52143252]
[1770694076556,9.13725328,85.839,85.744,53.52143252]
[1770694076750,35.0,85.84,85.744,53.52143252]
[1770694076951,9.13725328,85.839,85.744,53.52143252]
[1770694077158,10.4953,85.806,85.746,53.4145005]
[1770694077756,45.4923,85.83,85.746,53.4145005]
[1770694077962,9.13725328,85.829,85.746,53.4145005]
[1770694078252,9.13725328,85.828,85.746,53.4145005]
[1770694078452,10.4931,85.824,85.746,53.4145005]
[1770694078658,9.13725328,85.826,85.746,53.4145005]
[1770694078857,9.13725328,85.825,85.746,53.4145005]
[1770694079158,35.0,85.839,85.748,55.20692401]
[1770694079159,9.13725328,85.824,85.748,55.20692401]
[1770694079359,9.13725328,85.823,85.748,55.20692401]
[1770694079658,9.13725328,85.822,85.748,55.20692401]
[1770694079854,9.13725328,85.821,85.748,55.20692401]
[1770694080045,9.13725328,85.82,85.748,55.20692401]
[1770694080245,9.13725328,85.819,85.748,55.20692401]
[1770694080450,9.13725328,85.818,85.748,55.20692401]
[1770694080655,9.13725328,85.817,85.748,55.20692401]
[1770694080855,9.13725328,85.816,85.748,55.20692401]
[1770694081055,9.13725328,85.815,85.748,55.20692401]
[1770694081354,9.13725328,85.814,85.748,55.20692401]
[1770694081551,35.0,85.812,85.748,55.20692401]
[1770694081758,35.0,85.81,85.748,55.20692401]
[1770694081954,8.78870685,85.811,85.748,55.20692401]
[1770694081955,8.78870685,85.809,85.748,55.20692401]
[1770694082265,8.78870685,85.808,85.748,55.20692401]
[1770694082459,8.78870685,85.807,85.748,55.20692401]
[1770694082660,8.78870685,85.806,85.748,55.20692401]
[1770694082850,8.78870685,85.805,85.748,55.20692401]
[1770694083051,8.78870685,85.804,85.748,55.20692401]
[1770694083251,35.0,85.82,85.748,55.20692401]
[1770694083252,8.78870685,85.803,85.748,55.20692401]
[1770694083452,8.78870685,85.802,85.748,55.20692401]
[1770694083650,8.78870685,85.801,85.748,55.20692401]
[1770694083847,35.0,85.82,85.748,55.20692401]
[1770694084155,35.0,85.818,85.748,55.20692401]
[1770694084460,35.0,85.816,85.748,55.20692401]
[1770694084759,35.0,85.814,85.748,55.20692401]
[1770694084952,8.79821286,85.813,85.748,55.20692401]
[1770694085153,8.79821286,85.812,85.748,55.20692401]
[1770694085353,8.79821286,85.811,85.748,55.20692401]
[1770694085555,8.79821286,85.81,85.748,55.20692401]
[1770694085756,8.79821286,85.809,85.748,55.20692401]
[1770694085950,8.79821286,85.808,85.748,55.20692401]
[1770694086148,8.79821286,85.807,85.748,55.20692401]
[1770694086352,8.79821286,85.806,85.748,55.20692401]
[1770694086549,35.0,85.82,85.748,55.20692401]
[1770694086752,35.0,85.818,85.748,55.20692401]
[1770694086956,20.12597611,85.83,85.75,55.77744948]
[1770694086957,35.0,85.814,85.75,55.77744948]
[1770694087156,8.80533401,85.813,85.75,55.77744948]
[1770694087464,8.80533401,85.812,85.75,55.77744948]
[1770694087651,8.80533401,85.811,85.75,55.77744948]
[1770694087855,8.80533401,85.81,85.75,55.77744948]
[1770694088056,8.80533401,85.809,85.752,55.8081883]
[1770694088252,8.80533401,85.808,85.752,55.8081883]
[1770694088458,8.80533401,85.807,85.752,55.8081883]
[1770694088653,8.80533401,85.806,85.752,55.8081883]
[1770694088858,8.80533401,85.805,85.752,55.8081883]
[1770694089061,35.0,85.824,85.76,56.98048889]
[1770694089366,35.0,85.82,85.76,56.98048889]
[1770694089555,35.0,85.818,85.76,56.98048889]
[1770694089771,35.0,85.814,85.76,56.98048889]
[1770694090057,35.0,85.812,85.736,57.0131051]
[1770694090256,35.0,85.81,85.736,57.0131051]
[1770694090455,8.8075367,85.809,85.736,57.0131051]
[1770694090660,35.0,85.815,85.736,57.0131051]
[1770694090963,8.80661664,85.814,85.736,57.0131051]
[1770694091256,8.80661664,85.813,85.736,57.0131051]
[1770694091462,10.4946,85.811,85.739,57.07098706]
[1770694092458,10.4957,85.803,85.739,57.07098706]
[1770694093256,10.4963,85.798,85.739,57.07098706]
[1770694094364,10.4967,85.795,85.739,57.07098706]
[1770694095764,5.52661719,85.784,85.662,35.0]
[1770694095960,5.52661719,85.782,85.68,9.55964993]
[1770694096355,10.5002,85.766,85.707,10.5072]
[1770694097062,10.5002,85.766,85.68,9.55964993]
[1770694097269,10.5015,85.755,85.697,10.5085]
[1770694097766,10.5015,85.755,85.698,46.96572062]
[1770694098159,40.89390472,85.77,85.698,46.96572062]
[1770694098562,35.0,85.76,85.698,46.96572062]
[1770694098761,6.13988804,85.759,85.698,46.96572062]
[1770694101761,35.0,85.771,85.7,47.34363197]
[1770694101963,8.81065944,85.799,85.7,56.9032819]
[1770694102165,46.44963572,85.814,85.73,45.57150271]
[1770694103658,46.44963572,85.814,85.734,45.57150271]
[1770694104772,46.44963572,85.814,85.737,45.57150271]
[1770694105771,46.44963572,85.814,85.741,45.57150271]
[1770694106866,46.44963572,85.814,85.745,45.57150271]
[1770694108570,46.44963572,85.814,85.747,45.57150271]
[1770694109773,46.44963572,85.814,85.752,45.57150271]
[1770694110674,46.44963572,85.814,85.753,10.5017]
[1770694110874,46.44963572,85.814,85.754,45.57150271]
[1770694111071,46.44963572,85.848,85.754,45.57150271]
[1770694111268,46.44963572,85.848,85.682,163.4955]
[1770694111269,46.44963572,85.848,85.788,45.57150271]
[1770694111775,46.44963572,85.848,85.788,56.06890271]
[1770694112573,46.44963572,85.848,85.8,10.4959]
[1770694112775,46.44963572,85.848,85.8,56.06740271]
[1770694114671,46.44963572,85.848,85.8,45.57150271]
[1770694116978,46.44963572,85.848,85.784,45.57150271]
[1770694118764,46.44963572,85.848,85.721,21.76153283]
[1770694118765,46.44963572,85.863,85.798,45.57150271]
[1770694119378,500.2124152,85.877,85.798,45.57150271]
[1770694119576,46.44963572,85.876,85.813,45.57150271]
[1770694120676,10.4868,85.875,85.813,45.57150271]
[1770694120875,46.44963572,85.874,85.813,45.57150271]
[1770694121379,46.44963572,85.869,85.813,45.57150271]
[1770694126384,46.44963572,85.859,85.798,45.57150271]
[1770694127682,10.4881,85.865,85.802,45.57150271]
[1770694127876,46.44963572,85.87,85.802,45.57150271]
[1770694128785,46.44963572,85.87,85.806,45.57150271]
[1770694129684,52.13346739,85.865,85.809,53.20104128]
[1770694130586,52.13346739,85.863,85.809,53.20104128]
[1770694131387,52.13346739,85.857,85.795,53.20104128]
[1770694132781,52.13346739,85.857,85.797,53.20104128]
[1770694132982,52.13346739,85.872,85.797,53.20104128]
[1770694133585,62.62076739,85.871,85.808,53.20104128]
[1770694134291,453.76277948,85.877,85.808,53.20104128]
[1770694134292,52.13346739,85.859,85.808,53.20104128]
[1770694135597,52.13346739,85.887,85.823,63.69414128]
[1770694135794,52.13346739,85.887,85.823,53.20104128]
[1770694136195,52.13346739,85.869,85.823,53.20104128]
[1770694136500,52.13346739,85.869,85.811,10.4945]
[1770694136892,52.13346739,85.869,85.808,53.20104128]
[1770694138698,52.13346739,85.869,85.809,10.4947]
[1770694138991,52.13346739,85.869,85.809,63.69574128]
[1770694140299,52.13346739,85.869,85.819,63.69454128]
[1770694141001,52.13346739,85.869,85.819,53.20104128]
[1770694142797,52.13346739,85.869,85.822,53.20104128]
[1770694143101,4.01052678,85.86,85.822,53.20104128]
[1770694143901,52.13346739,85.869,85.822,53.20104128]
[1770694143902,4.01052678,85.85,85.822,53.20104128]
[1770694144096,4.01052678,85.85,85.809,10.4948]
[1770694144896,4.01052678,85.84,85.809,10.4948]
[1770694145498,4.01052678,85.84,85.809,63.69584128]
[1770694145706,4.01052678,85.85,85.809,53.20104128]
[1770694146702,4.01052678,85.86,85.809,53.20104128]
[1770694147698,4.01052678,85.84,85.809,53.20104128]
[1770694149208,4.01052678,85.86,85.812,10.4944]
[1770694149403,4.01052678,85.85,85.813,53.20104128]
[1770694150603,4.01052678,85.84,85.798,53.20104128]
[1770694150909,4.01052678,85.83,85.798,53.20104128]
[1770694151312,4.01052678,85.84,85.798,53.20104128]
[1770694152107,4.01052678,85.85,85.8,53.20104128]
[1770694153012,4.01052678,85.84,85.787,53.20104128]
[1770694153512,4.01052678,85.85,85.791,53.20104128]
[1770694154711,4.01052678,85.85,85.797,53.20104128]
[1770694156009,52.13346739,85.849,85.797,53.20104128]
[1770694156204,4.01052678,85.83,85.797,53.20104128]
[1770694156406,4.01052678,85.85,85.797,53.20104128]
[1770694157016,10.49,85.849,85.797,53.20104128]
[1770694157216,4.01052678,85.84,85.797,53.20104128]
[1770694158109,10.4913,85.839,85.797,53.20104128]
[1770694159106,4.01052678,85.83,85.797,53.20104128]
[1770694159507,10.4913,85.839,85.797,53.20104128]
[1770694161516,10.4901,85.848,85.797,53.20104128]
[1770694162117,4.01052678,85.84,85.797,53.20104128]
[1770694165212,10.4913,85.839,85.797,53.20104128]
[1770694165518,4.01052678,85.83,85.797,53.20104128]
[1770694166019,67.01215161,85.839,85.797,53.20104128]
[1770694166919,10.4913,85.839,85.797,53.20104128]
[1770694167811,10.4901,85.848,85.797,53.20104128]
[1770694168819,10.4889,85.859,85.799,58.76072427]
[1770694169219,10.4889,85.859,85.801,58.76072427]
[1770694169717,10.4889,85.859,85.801,69.25652427]
[1770694171023,4.01052678,85.85,85.801,69.25652427]
[1770694174024,10.4889,85.859,85.801,69.25652427]
[1770694174322,67.00975161,85.859,85.801,69.25652427]
[1770694174523,4.01052678,85.85,85.801,69.25652427]
[1770694179618,8.50546635,85.858,85.801,58.76072427]
[1770694179820,65.02631796,85.857,85.801,58.76072427]
[1770694180021,65.02631796,85.856,85.801,58.76072427]
[1770694180221,4.01052678,85.85,85.801,58.76072427]
[1770694180929,4.01166203,85.85,85.801,58.76072427]
[1770694183024,67.00995161,85.856,85.801,58.76072427]
[1770694183331,4.01166203,85.85,85.804,58.76072427]
[1770694183534,67.00995161,85.856,85.804,58.76072427]
[1770694184836,56.52085161,85.856,85.804,58.76072427]
[1770694185036,4.01166203,85.84,85.783,58.76072427]
[1770694185921,4.01166203,85.85,85.783,58.76072427]
[1770694186834,4.01166203,85.85,85.78,4.01166203]
[1770694186835,10.491,85.841,85.786,58.76072427]
[1770694187728,10.491,85.841,85.79,58.76072427]
[1770694189338,10.491,85.841,85.792,58.76072427]
[1770694191143,4.01166203,85.85,85.792,58.76072427]
[1770694191348,67.01005161,85.856,85.799,61.40175564]
[1770694193549,4.01166203,85.85,85.799,61.40175564]
[1770694195145,58.92063157,85.849,85.799,61.40175564]
[1770694196443,4.01166203,85.84,85.796,61.40175564]
[1770694197846,14.50276203,85.84,85.796,61.40175564]
[1770694199051,73.4233936,85.84,85.796,61.40175564]
[1770694199353,62.9322936,85.83,85.784,61.40175564]
[1770694200054,4.01166203,85.82,85.784,61.40175564]
[1770694200457,62.9322936,85.81,85.761,61.40175564]
[1770694200649,4.01166203,85.77,85.71,83.22328753]
[1770694200852,58.92063157,85.785,85.711,61.40175564]
[1770694201050,62.9322936,85.78,85.721,61.40175564]
[1770694201357,58.92063157,85.769,85.721,61.40175564]
[1770694201553,58.92063157,85.759,85.701,61.40175564]
[1770694201763,58.92063157,85.749,85.701,61.40175564]
[1770694201956,4.01166203,85.74,85.701,61.40175564]
[1770694202457,58.92063157,85.749,85.701,61.40175564]
[1770694203159,4.01166203,85.73,85.671,61.40175564]
[1770694203347,4.01166203,85.72,85.671,61.40175564]
[1770694204156,62.9322936,85.73,85.671,61.40175564]
[1770694204656,58.92063157,85.73,85.671,61.40175564]
[1770694204849,163.2877,85.792,85.66,1.84131502]
[1770694204850,4.01166203,85.74,85.681,61.40175564]
[1770694205055,58.92063157,85.729,85.681,61.40175564]
[1770694205253,4.01166203,85.72,85.681,61.40175564]
[1770694205554,62.9322936,85.72,85.661,61.40175564]
[1770694207955,58.92063157,85.739,85.681,61.40175564]
[1770694208158,58.92063157,85.739,85.665,61.40175564]
[1770694208361,4.01166203,85.69,85.62,61.40175564]
[1770694208551,4.01166203,85.7,85.64,4.01166203]
[1770694208754,58.92063157,85.707,85.641,61.40175564]
[1770694208955,58.92063157,85.719,85.661,61.40175564]
[1770694209370,58.92063157,85.709,85.661,61.40175564]
[1770694210767,58.92063157,85.707,85.65,4.01166203]
[1770694210957,58.92063157,85.707,85.65,65.41341767]
[1770694211258,4.01166203,85.7,85.641,61.40175564]
[1770694211462,58.92063157,85.713,85.66,65.41341767]
[1770694211763,58.92063157,85.709,85.66,61.40175564]
[1770694212766,58.92063157,85.709,85.582,163.6856]
[1770694212767,58.92063157,85.679,85.6,4.01166203]
[1770694213063,58.92063157,85.679,85.621,61.40175564]
[1770694213260,58.92063157,85.679,85.64,4.01166203]
[1770694213456,58.92063157,85.696,85.65,4.01166203]
[1770694213763,58.92063157,85.711,85.651,61.40175564]
[1770694214866,69.42753157,85.711,85.651,61.40175564]
[1770694215064,58.92063157,85.709,85.651,61.40175564]
[1770694215260,58.92063157,85.707,85.651,61.40175564]
[1770694215468,58.92063157,85.707,85.66,65.41341767]
[1770694215855,58.92063157,85.707,85.66,61.40175564]
[1770694216460,58.92063157,85.707,85.632,61.40175564]
[1770694216655,58.92063157,85.669,85.632,61.40175564]
[1770694218162,58.92063157,85.669,85.614,61.40175564]
[1770694218363,58.92063157,85.669,85.62,4.01166203]
[1770694219167,58.92063157,85.667,85.601,61.40175564]
[1770694219468,58.92063157,85.667,85.61,65.41341767]
[1770694219858,71.04879452,85.666,85.61,65.41341767]
[1770694221263,64.40058583,85.685,85.621,63.1873476]
[1770694221467,64.40058583,85.679,85.621,63.1873476]
[1770694221662,74.91308583,85.666,85.61,4.01166203]
[1770694221866,74.91308583,85.666,85.605,63.1873476]
[1770694222471,74.91388583,85.659,85.605,63.1873476]
[1770694223171,64.40058583,85.649,85.59,67.19900963]
[1770694223371,10.5133,85.659,85.601,63.1873476]
[1770694223567,10.5153,85.643,85.553,63.1873476]
[1770694223768,64.40058583,85.674,85.551,63.1873476]
[1770694223976,64.40058583,85.644,85.59,4.01166203]
[1770694224165,64.40058583,85.644,85.581,63.1873476]
[1770694224364,64.40058583,85.64,85.581,63.1873476]
[1770694224565,68.41224786,85.64,85.581,63.1873476]
[1770694224964,64.40058583,85.64,85.581,63.1873476]
[1770694225778,64.40058583,85.626,85.565,63.1873476]
[1770694226166,10.515,85.645,85.567,58.6273476]
[1770694226870,10.515,85.645,85.568,10.5244]
[1770694227071,64.40058583,85.657,85.568,10.5244]
[1770694227477,64.40058583,85.657,85.582,10.5226]
[1770694227674,64.40058583,85.653,85.56,9.59975076]
[1770694228373,64.40058583,85.651,85.571,63.1873476]
[1770694229070,74.91498583,85.65,85.575,63.1873476]
[1770694229269,64.40058583,85.65,85.575,63.1873476]
[1770694229678,10.5158,85.639,85.575,63.1873476]
[1770694229883,10.5158,85.639,85.513,163.8174]
[1770694229884,64.40058583,85.639,85.518,63.1873476]
[1770694230176,64.40058583,85.629,85.518,63.1873476]
[1770694230476,64.40058583,85.629,85.531,63.1873476]
[1770694231178,10.5173,85.626,85.544,63.1873476]
[1770694231373,64.40058583,85.626,85.544,63.1873476]
[1770694231569,64.40058583,85.612,85.544,63.1873476]
[1770694232079,64.40058583,85.609,85.544,63.1873476]
[1770694232275,163.5847,85.636,85.498,63.1873476]
[1770694232480,64.40058583,85.61,85.51,9.59975076]
[1770694232774,64.40058583,85.601,85.511,73.7187476]
[1770694233369,64.40058583,85.616,85.541,63.1873476]
[1770694233575,64.40058583,85.634,85.541,63.1873476]
[1770694233780,64.40058583,85.621,85.501,63.1873476]
[1770694234073,64.40058583,85.621,85.5,9.59975076]
[1770694234074,64.40058583,85.601,85.517,63.1873476]
[1770694234483,9.59975076,85.62,85.517,63.1873476]
[1770694234484,74.92118583,85.6,85.517,63.1873476]
[1770694234873,74.00033659,85.6,85.517,63.1873476]
[1770694235275,64.40058583,85.6,85.517,63.1873476]
[1770694236176,10.5222,85.586,85.517,63.1873476]
[1770694236476,64.40058583,85.585,85.517,63.1873476]
[1770694236878,64.40058583,85.579,85.517,63.1873476]
[1770694237476,10.5214,85.593,85.517,63.1873476]
[1770694237885,10.5253,85.562,85.477,63.1873476]
[1770694238180,64.40058583,85.583,85.477,63.1873476]
[1770694238567,64.40058583,85.583,85.491,63.1873476]
[1770694238779,64.40058583,85.576,85.493,63.1873476]
[1770694239584,64.40058583,85.573,85.493,63.1873476]
[1770694240479,64.40058583,85.569,85.493,63.1873476]
[1770694240880,64.40058583,85.559,85.478,63.1873476]
[1770694241385,64.40058583,85.553,85.478,63.1873476]
[1770694241778,64.40058583,85.553,85.48,63.1873476]
[1770694241975,64.40058583,85.571,85.48,63.1873476]
[1770694242181,64.40058583,85.571,85.491,63.1873476]
[1770694242385,74.92118583,85.599,85.513,63.1873476]
[1770694243384,74.92118583,85.599,85.516,63.1873476]
[1770694243586,64.40058583,85.599,85.516,63.1873476]
[1770694243887,64.40058583,85.616,85.535,63.1873476]
[1770694244480,64.40058583,85.616,85.537,63.1873476]
[1770694244687,64.40058583,85.633,85.537,63.1873476]
[1770694245283,64.40058583,85.616,85.542,63.1873476]
[1770694246080,10.45775603,85.692,85.485,63.1873476]
[1770694246081,64.40058583,85.564,85.485,63.1873476]
[1770694246682,64.40058583,85.583,85.5,63.1873476]
[1770694247483,74.92348583,85.581,85.504,63.1873476]
[1770694249987,64.48405581,85.554,85.473,65.0326033]
[1770694250683,64.48405581,85.554,85.478,65.0326033]
[1770694251287,75.01025581,85.554,85.48,65.0326033]
[1770694257892,10.5275,85.543,85.48,65.0326033]
[1770694259085,64.48405581,85.533,85.469,65.0326033]
[1770694259788,64.48405581,85.531,85.469,65.0326033]
[1770694260289,10.5275,85.544,85.473,65.0326033]
[1770694260587,75.01155581,85.544,85.473,65.0326033]
[1770694260793,75.01415581,85.522,85.455,65.0326033]
[1770694261093,64.48405581,85.522,85.455,65.0326033]
[1770694261483,75.01425581,85.521,85.458,65.0326033]
[1770694261884,64.48405581,85.538,85.466,65.0326033]
[1770694262295,64.48405581,85.538,85.449,65.0326033]
[1770694262791,8.93494016,85.56,85.449,65.0326033]
[1770694262792,75.01505581,85.515,85.449,65.0326033]
[1770694262996,64.48405581,85.549,85.449,65.0326033]
[1770694263583,64.48405581,85.518,85.451,65.0326033]
[1770694264094,64.48405581,85.518,85.454,65.0326033]
[1770694265793,64.48405581,85.518,85.463,65.0326033]
[1770694266695,64.48405581,85.518,85.406,35.11]
[1770694266696,64.48405581,85.496,85.448,9.134e-05]
[1770694266900,64.48405581,85.496,85.448,65.03269464]
[1770694267197,10.55739485,85.584,85.448,65.03269464]
[1770694267198,64.48405581,85.518,85.448,65.03269464]
[1770694267988,10.531,85.515,85.448,65.03269464]
[1770694268192,64.48405581,85.514,85.448,65.03269464]
[1770694268697,35.11,85.57,85.448,65.03269464]
[1770694268698,64.48405581,85.501,85.448,9.134e-05]
[1770694269796,75.01805581,85.491,85.448,9.134e-05]
[1770694270304,10.5365,85.47,85.448,9.134e-05]
[1770694270598,163.7935,85.527,85.448,9.134e-05]
[1770694270599,64.48405581,85.499,85.448,9.134e-05]
[1770694271101,10.5351,85.482,85.448,9.134e-05]
[1770694272098,75.01915581,85.482,85.448,9.134e-05]
[1770694273195,64.48405581,85.498,85.448,9.134e-05]
[1770694273901,64.48405581,85.535,85.451,65.0326033]
[1770694274096,64.48405581,85.535,85.459,65.0326033]
[1770694275299,64.48405581,85.523,85.459,65.0326033]
[1770694277504,64.48405581,85.523,85.448,9.134e-05]
[1770694278801,75.01405581,85.523,85.451,65.0326033]
[1770694280704,75.01405581,85.523,85.456,65.97698895]
[1770694282007,66.1774918,85.501,85.448,9.134e-05]
[1770694283604,66.1774918,85.499,85.448,9.134e-05]
[1770694284103,66.1774918,85.499,85.286,164.2542]
[1770694284104,66.1774918,85.455,85.388,65.14759545]
[1770694284909,163.8517,85.497,85.35,9.61705838]
[1770694284910,66.1774918,85.413,85.35,65.14759545]
[1770694285109,66.1774918,85.413,85.332,65.14759545]
[1770694285314,66.1774918,85.413,85.336,65.14759545]
[1770694285701,66.1774918,85.413,85.339,65.14759545]
[1770694286708,76.7210918,85.413,85.339,65.14759545]
[1770694287408,66.1774918,85.413,85.342,65.14759545]
[1770694288013,66.1774918,85.431,85.344,65.14759545]
[1770694288205,66.1774918,85.419,85.323,65.14759545]
[1770694289219,66.1774918,85.417,85.327,65.14759545]
[1770694290313,10.5529,85.337,85.287,2.0382285]
[1770694290513,66.1774918,85.336,85.237,65.14759545]
[1770694290914,10.5533,85.334,85.241,65.14759545]
[1770694291109,47.8167551,85.359,85.261,65.14759545]
[1770694291408,164.0458,85.395,85.2,9.61705838]